[Event "*** Titled Tuesday Blitz"]
[Site "Chess.com"]
[Date "2020.11.10"]
[Round "2"]
[White "Stormeman100100"]
[Black "S2PAc"]
[Result "0-1"]
[WhiteElo "2536"]
[BlackElo "2815"]
[TimeControl "180+1"]
[EndTime "10:21:09 PST"]
[Termination "S2PAc won by resignation"]

1. d4 {[%clk 0:03:00.9]} 1... Nf6 {[%clk 0:02:59.4]} 2. c4 {[%clk 0:02:58.8]}
2... e6 {[%clk 0:02:59.9]} 3. Nf3 {[%clk 0:02:57.7]} 3... c5 {[%clk 0:03:00.4]}
4. d5 {[%clk 0:02:57.1]} 4... exd5 {[%clk 0:03:01.3]} 5. cxd5 {[%clk 0:02:57.8]}
5... Bd6 {[%clk 0:03:01.9]} 6. Nc3 {[%clk 0:02:55.7]} 6... Bc7 {[%clk
0:03:02.2]} 7. Bg5 {[%clk 0:02:53.1]} 7... d6 {[%clk 0:03:02.2]} 8. e3 {[%clk
0:02:51.6]} 8... a6 {[%clk 0:03:02.7]} 9. a4 {[%clk 0:02:51.2]} 9... Nbd7 {[%clk
0:03:03]} 10. Be2 {[%clk 0:02:48.5]} 10... h6 {[%clk 0:03:02.1]} 11. Bh4 {[%clk
0:02:48.5]} 11... Nf8 {[%clk 0:03:02.6]} 12. Nd2 {[%clk 0:02:46.1]} 12... Ng6
{[%clk 0:03:01.1]} 13. Bg3 {[%clk 0:02:46.3]} 13... Rb8 {[%clk 0:02:56.3]} 14.
O-O {[%clk 0:02:44.6]} 14... O-O {[%clk 0:02:56]} 15. a5 {[%clk 0:02:33.1]}
15... Bd7 {[%clk 0:02:15.6]} 16. Nc4 {[%clk 0:02:25.9]} 16... Ne8 {[%clk
0:02:16]} 17. Na4 {[%clk 0:02:14.3]} 17... Bb5 {[%clk 0:02:09.4]} 18. Nab6
{[%clk 0:02:01.3]} 18... Nf6 {[%clk 0:02:07.7]} 19. Qc2 {[%clk 0:01:53.1]} 19...
Re8 {[%clk 0:02:00.5]} 20. Rad1 {[%clk 0:01:38.5]} 20... Ne4 {[%clk 0:01:55.9]}
21. Rfe1 {[%clk 0:01:31.6]} 21... Nxg3 {[%clk 0:01:52.9]} 22. hxg3 {[%clk
0:01:32.5]} 22... Bxc4 {[%clk 0:01:48.1]} 23. Nxc4 {[%clk 0:01:21.8]} 23... Bxa5
{[%clk 0:01:48.2]} 24. Rf1 {[%clk 0:01:21.8]} 24... b5 {[%clk 0:01:38.9]} 25.
Nxa5 {[%clk 0:01:19.1]} 25... Qxa5 {[%clk 0:01:39.8]} 26. Bd3 {[%clk 0:01:14.1]}
26... Ne5 {[%clk 0:01:37.6]} 27. Bf5 {[%clk 0:01:14.2]} 27... Qb6 {[%clk
0:01:22.4]} 28. e4 {[%clk 0:01:12.1]} 28... c4 {[%clk 0:01:21.5]} 29. Kh1 {[%clk
0:01:09]} 29... g6 {[%clk 0:01:16.9]} 30. Bh3 {[%clk 0:01:07.4]} 30... Nd3
{[%clk 0:01:16.9]} 31. f3 {[%clk 0:01:04.1]} 31... Qc5 {[%clk 0:01:01.8]} 32.
Qc3 {[%clk 0:01:04]} 32... Nf2+ {[%clk 0:00:49.5]} 33. Rxf2 {[%clk 0:01:04]}
33... Qxf2 {[%clk 0:00:50.4]} 34. Kh2 {[%clk 0:01:04.5]} 34... Qb6 {[%clk
0:00:46.3]} 35. Re1 {[%clk 0:00:58.6]} 35... Qd8 {[%clk 0:00:40.6]} 36. f4
{[%clk 0:00:58.6]} 36... Qc7 {[%clk 0:00:32.6]} 37. e5 {[%clk 0:00:55.5]} 37...
b4 {[%clk 0:00:33.1]} 38. Qd4 {[%clk 0:00:54.3]} 38... Qc5 {[%clk 0:00:33.6]}
39. Qe4 {[%clk 0:00:52.3]} 39... c3 {[%clk 0:00:33.7]} 40. e6 {[%clk 0:00:51]}
40... f5 {[%clk 0:00:31.8]} 41. Bxf5 {[%clk 0:00:48.7]} 41... gxf5 {[%clk
0:00:31.3]} 42. Qxf5 {[%clk 0:00:49]} 42... Qc7 {[%clk 0:00:31.9]} 43. bxc3
{[%clk 0:00:33.1]} 43... bxc3 {[%clk 0:00:32.8]} 44. g4 {[%clk 0:00:28.3]} 44...
Qg7 {[%clk 0:00:30.5]} 45. g5 {[%clk 0:00:27.1]} 45... Rf8 {[%clk 0:00:29.7]}
46. Qg4 {[%clk 0:00:24.8]} 46... hxg5 {[%clk 0:00:29.1]} 47. fxg5 {[%clk
0:00:25.7]} 47... Rb7 {[%clk 0:00:26.3]} 48. Re2 {[%clk 0:00:24.7]} 48... Re8
{[%clk 0:00:22.4]} 49. Qg3 {[%clk 0:00:24.3]} 49... Rb2 {[%clk 0:00:21.7]} 50.
Re1 {[%clk 0:00:23.6]} 50... c2 {[%clk 0:00:20.3]} 51. Rf1 {[%clk 0:00:18.3]}
51... Qe5 {[%clk 0:00:19.4]} 52. Qxe5 {[%clk 0:00:17.4]} 52... dxe5 {[%clk
0:00:20.3]} 53. d6 {[%clk 0:00:18.3]} 53... Rxe6 {[%clk 0:00:19.1]} 54. d7
{[%clk 0:00:18.8]} 54... Rd6 {[%clk 0:00:18.6]} 55. Rf6 {[%clk 0:00:16.7]} 55...
Rxd7 {[%clk 0:00:18.2]} 56. Rc6 {[%clk 0:00:17.3]} 56... Rd1 {[%clk 0:00:17]}
57. Rc8+ {[%clk 0:00:17.8]} 57... Kg7 {[%clk 0:00:15.8]} 58. Rc7+ {[%clk
0:00:18.7]} 58... Kg6 {[%clk 0:00:16.1]} 59. Rc6+ {[%clk 0:00:19.2]} 59... Kxg5
{[%clk 0:00:16.4]} 60. Rc8 {[%clk 0:00:19.5]} 60... c1=Q {[%clk 0:00:16.3]} 61.
Rg8+ {[%clk 0:00:20.2]} 61... Kf6 {[%clk 0:00:16.6]} 62. Rf8+ {[%clk 0:00:20.7]}
62... Ke7 {[%clk 0:00:16.9]} 63. Rf3 {[%clk 0:00:20.6]} 63... Qh6+ {[%clk
0:00:16.4]} 64. Kg3 {[%clk 0:00:20.9]} 64... Qg5+ {[%clk 0:00:16.4]} 65. Kh3
{[%clk 0:00:21.2]} 65... Qxg2+ {[%clk 0:00:16.3]} 66. Kh4 {[%clk 0:00:20.9]}
66... Rh1+ {[%clk 0:00:16.8]} 67. Rh3 {[%clk 0:00:18.9]} 0-1

[Event "*** Titled Tuesday Blitz"]
[Site "Chess.com"]
[Date "2020.11.10"]
[Round "2"]
[White "tvjosue"]
[Black "MITerryble"]
[Result "0-1"]
[WhiteElo "2570"]
[BlackElo "2912"]
[TimeControl "180+1"]
[EndTime "10:21:12 PST"]
[Termination "MITerryble won on time"]

1. b3 {[%clk 0:03:00.9]} 1... d5 {[%clk 0:02:35.1]} 2. Bb2 {[%clk 0:02:57.4]}
2... Bg4 {[%clk 0:02:34.3]} 3. c4 {[%clk 0:02:54.1]} 3... d4 {[%clk 0:02:33.7]}
4. g3 {[%clk 0:02:53.9]} 4... Nc6 {[%clk 0:02:33.2]} 5. Bg2 {[%clk 0:02:54.3]}
5... e5 {[%clk 0:02:33.6]} 6. d3 {[%clk 0:02:54.6]} 6... Nf6 {[%clk 0:02:32.8]}
7. Nd2 {[%clk 0:02:54.8]} 7... a5 {[%clk 0:02:32.7]} 8. a3 {[%clk 0:02:54.4]}
8... Be7 {[%clk 0:02:33]} 9. Ngf3 {[%clk 0:02:54.6]} 9... O-O {[%clk 0:02:32.9]}
10. O-O {[%clk 0:02:55.2]} 10... Nd7 {[%clk 0:02:33.2]} 11. Re1 {[%clk
0:02:51.6]} 11... Nc5 {[%clk 0:02:32.8]} 12. b4 {[%clk 0:02:49.2]} 12... axb4
{[%clk 0:02:29.8]} 13. axb4 {[%clk 0:02:50.1]} 13... Nxb4 {[%clk 0:02:30.6]} 14.
Nxe5 {[%clk 0:02:47.6]} 14... Rxa1 {[%clk 0:01:57.8]} 15. Bxa1 {[%clk
0:02:46.5]} 15... Bh5 {[%clk 0:01:51.9]} 16. Nef3 {[%clk 0:02:35.8]} 16... Nc6
{[%clk 0:01:36.9]} 17. Nb3 {[%clk 0:02:33.6]} 17... Ne6 {[%clk 0:01:37]} 18. Bb2
{[%clk 0:02:27.7]} 18... Bb4 {[%clk 0:01:35.4]} 19. Rf1 {[%clk 0:02:26]} 19...
Qd6 {[%clk 0:01:31.8]} 20. Qc2 {[%clk 0:02:24.9]} 20... Re8 {[%clk 0:01:26.9]}
21. Nbd2 {[%clk 0:02:21.1]} 21... Nc5 {[%clk 0:01:24.7]} 22. Re1 {[%clk
0:01:43.8]} 22... h6 {[%clk 0:01:24.6]} 23. Kf1 {[%clk 0:01:39.5]} 23... g5
{[%clk 0:00:55.7]} 24. Rb1 {[%clk 0:01:34.9]} 24... Qe7 {[%clk 0:00:43.2]} 25.
Re1 {[%clk 0:01:18.4]} 25... Qd6 {[%clk 0:00:43.1]} 26. Rb1 {[%clk 0:01:17.5]}
26... b6 {[%clk 0:00:34.4]} 27. Nb3 {[%clk 0:00:50.7]} 27... Ne6 {[%clk
0:00:31.6]} 28. Nbd2 {[%clk 0:00:47.3]} 28... Qe7 {[%clk 0:00:28.6]} 29. Re1
{[%clk 0:00:39.7]} 29... Qd6 {[%clk 0:00:13.8]} 30. e3 {[%clk 0:00:38.1]} 30...
dxe3 {[%clk 0:00:13.5]} 31. Rxe3 {[%clk 0:00:39]} 31... f5 {[%clk 0:00:08.3]}
32. Ne5 {[%clk 0:00:32.2]} 32... Ned4 {[%clk 0:00:05.3]} 33. Bxd4 {[%clk
0:00:14]} 33... Nxd4 {[%clk 0:00:05.1]} 34. Qa4 {[%clk 0:00:08.4]} 34... Rxe5
{[%clk 0:00:02.9]} 35. Qa8+ {[%clk 0:00:08.2]} 35... Kg7 {[%clk 0:00:02.8]} 36.
Bd5 {[%clk 0:00:07.5]} 36... Bf7 {[%clk 0:00:02.4]} 37. Bxf7 {[%clk 0:00:03.1]}
37... Kxf7 {[%clk 0:00:03.3]} 38. Qh8 {[%clk 0:00:02.9]} 38... Rxe3 {[%clk
0:00:03.5]} 39. fxe3 {[%clk 0:00:03.4]} 39... Ne6 {[%clk 0:00:03.1]} 40. Qh7+
{[%clk 0:00:02.9]} 40... Ng7 {[%clk 0:00:03.5]} 41. Nf3 {[%clk 0:00:03.8]} 41...
Qf6 {[%clk 0:00:03.4]} 42. Ke2 {[%clk 0:00:03.8]} 42... Be7 {[%clk 0:00:03.8]}
43. Qh8 {[%clk 0:00:04.3]} 43... Qb2+ {[%clk 0:00:04.2]} 44. Kf1 {[%clk
0:00:04.3]} 44... Qf6 {[%clk 0:00:05.1]} 45. d4 {[%clk 0:00:04.4]} 45... Bd6
{[%clk 0:00:04.4]} 46. Qc8 {[%clk 0:00:05]} 46... Kg6 {[%clk 0:00:04.1]} 47. c5
{[%clk 0:00:03.4]} 47... bxc5 {[%clk 0:00:03.8]} 48. dxc5 {[%clk 0:00:04.3]}
48... Bxc5 {[%clk 0:00:04.7]} 49. Qxc7 {[%clk 0:00:04.9]} 49... Bxe3 {[%clk
0:00:04.7]} 50. Ne5+ {[%clk 0:00:04.8]} 50... Kh7 {[%clk 0:00:04.8]} 51. Nd7
{[%clk 0:00:04.7]} 51... Qe7 {[%clk 0:00:04.9]} 52. Qc6 {[%clk 0:00:04.4]} 52...
Bd4 {[%clk 0:00:03]} 53. Qd5 {[%clk 0:00:04.1]} 53... Qe4 {[%clk 0:00:01.8]} 54.
Qd6 {[%clk 0:00:02.1]} 54... Qd3+ {[%clk 0:00:01.4]} 55. Kg2 {[%clk 0:00:02.3]}
55... Qe2+ {[%clk 0:00:01.8]} 56. Kh3 {[%clk 0:00:01.5]} 56... g4+ {[%clk
0:00:02]} 0-1

[Event "*** Titled Tuesday Blitz"]
[Site "Chess.com"]
[Date "2020.11.10"]
[Round "2"]
[White "26andrej26"]
[Black "RD4ever"]
[Result "0-1"]
[WhiteElo "2543"]
[BlackElo "2828"]
[TimeControl "180+1"]
[EndTime "10:21:12 PST"]
[Termination "RD4ever won on time"]

1. e4 {[%clk 0:03:00.9]} 1... e6 {[%clk 0:02:59.6]} 2. d4 {[%clk 0:03:00.8]}
2... d5 {[%clk 0:02:59.6]} 3. Nc3 {[%clk 0:03:01.7]} 3... Bb4 {[%clk 0:02:55.1]}
4. e5 {[%clk 0:03:01.5]} 4... c5 {[%clk 0:02:55.2]} 5. a3 {[%clk 0:03:02.2]}
5... Bxc3+ {[%clk 0:02:55.3]} 6. bxc3 {[%clk 0:03:03.1]} 6... Ne7 {[%clk
0:02:55.8]} 7. Qg4 {[%clk 0:03:03.2]} 7... O-O {[%clk 0:02:55.2]} 8. Bd3 {[%clk
0:03:03.3]} 8... f5 {[%clk 0:02:55.1]} 9. exf6 {[%clk 0:03:04.2]} 9... Rxf6
{[%clk 0:02:55.3]} 10. Bg5 {[%clk 0:03:01.6]} 10... Rf7 {[%clk 0:02:54.8]} 11.
Qh5 {[%clk 0:03:01.3]} 11... g6 {[%clk 0:02:54.3]} 12. Qd1 {[%clk 0:03:01.4]}
12... Qa5 {[%clk 0:02:54.2]} 13. Bd2 {[%clk 0:03:00.1]} 13... e5 {[%clk
0:02:54.3]} 14. dxe5 {[%clk 0:02:09.2]} 14... Nbc6 {[%clk 0:02:53.7]} 15. f4
{[%clk 0:01:57.9]} 15... c4 {[%clk 0:02:53]} 16. Be2 {[%clk 0:01:58]} 16... Bf5
{[%clk 0:02:47.4]} 17. Nf3 {[%clk 0:01:57.1]} 17... Qc5 {[%clk 0:02:47]} 18. Qc1
{[%clk 0:01:55.4]} 18... d4 {[%clk 0:02:42.5]} 19. cxd4 {[%clk 0:01:55.4]} 19...
Nxd4 {[%clk 0:02:43.4]} 20. Nxd4 {[%clk 0:01:55.6]} 20... Qxd4 {[%clk
0:02:44.3]} 21. Be3 {[%clk 0:01:35.6]} 21... Qc3+ {[%clk 0:02:43.5]} 22. Bd2
{[%clk 0:01:35.1]} 22... Qd4 {[%clk 0:02:42.6]} 23. Be3 {[%clk 0:01:35.4]} 23...
Qe4 {[%clk 0:02:29.4]} 24. O-O {[%clk 0:01:32.8]} 24... Nd5 {[%clk 0:02:24.4]}
25. Kf2 {[%clk 0:01:20.7]} 25... g5 {[%clk 0:01:17.9]} 26. Bf3 {[%clk
0:01:20.5]} 26... Qxe3+ {[%clk 0:01:17.1]} 27. Qxe3 {[%clk 0:01:21.4]} 27...
Nxe3 {[%clk 0:01:18]} 28. Kxe3 {[%clk 0:01:22.2]} 28... gxf4+ {[%clk 0:01:18.7]}
29. Kf2 {[%clk 0:00:52.3]} 29... Rd8 {[%clk 0:01:16.8]} 30. Rfd1 {[%clk
0:00:48.5]} 30... Rfd7 {[%clk 0:01:16.6]} 31. c3 {[%clk 0:00:45]} 31... Kf7
{[%clk 0:01:13.2]} 32. Rxd7+ {[%clk 0:00:22.8]} 32... Rxd7 {[%clk 0:01:14.1]}
33. Be2 {[%clk 0:00:20.9]} 33... Rd2 {[%clk 0:01:01.4]} 34. Kf3 {[%clk
0:00:19.8]} 34... Bd3 {[%clk 0:00:42.3]} 35. Bxd3 {[%clk 0:00:20.1]} 35... Rxd3+
{[%clk 0:00:43.2]} 36. Kxf4 {[%clk 0:00:20.4]} 36... Rxc3 {[%clk 0:00:43.8]} 37.
Rd1 {[%clk 0:00:20.3]} 37... Ke7 {[%clk 0:00:40.1]} 38. Rd4 {[%clk 0:00:13.2]}
38... b5 {[%clk 0:00:39.7]} 39. Rd5 {[%clk 0:00:12.5]} 39... a6 {[%clk
0:00:39.4]} 40. Rc5 {[%clk 0:00:11.8]} 40... Rc2 {[%clk 0:00:33.5]} 41. Rc7+
{[%clk 0:00:08.8]} 41... Ke6 {[%clk 0:00:33.6]} 42. Rc6+ {[%clk 0:00:08.8]}
42... Kd5 {[%clk 0:00:34]} 43. Rd6+ {[%clk 0:00:08.5]} 43... Kc5 {[%clk
0:00:34.6]} 44. Rxa6 {[%clk 0:00:08.6]} 44... Rxg2 {[%clk 0:00:34]} 45. e6
{[%clk 0:00:08.6]} 45... Rxh2 {[%clk 0:00:30.9]} 46. Kf5 {[%clk 0:00:06.6]}
46... Re2 {[%clk 0:00:31]} 47. Kf6 {[%clk 0:00:05.6]} 47... c3 {[%clk
0:00:31.5]} 48. Ra7 {[%clk 0:00:06.1]} 48... Kc4 {[%clk 0:00:30.9]} 49. Rxh7
{[%clk 0:00:06.1]} 49... c2 {[%clk 0:00:28.3]} 50. Rc7+ {[%clk 0:00:06.1]} 50...
Kb3 {[%clk 0:00:28.4]} 51. e7 {[%clk 0:00:06.6]} 51... Re4 {[%clk 0:00:20.3]}
52. Kf7 {[%clk 0:00:05.6]} 52... Rf4+ {[%clk 0:00:19.8]} 53. Ke6 {[%clk
0:00:05.3]} 53... Rc4 {[%clk 0:00:18.8]} 54. Rxc4 {[%clk 0:00:03.8]} 54... bxc4
{[%clk 0:00:19]} 55. e8=Q {[%clk 0:00:04.7]} 55... c1=Q {[%clk 0:00:19.5]} 56.
Qb5+ {[%clk 0:00:04.9]} 56... Ka2 {[%clk 0:00:20.1]} 57. Qb4 {[%clk 0:00:05.1]}
57... c3 {[%clk 0:00:20]} 58. Qc4+ {[%clk 0:00:04.5]} 58... Ka1 {[%clk
0:00:20.5]} 59. a4 {[%clk 0:00:04.6]} 59... Qe3+ {[%clk 0:00:19.2]} 60. Kd5
{[%clk 0:00:04.6]} 60... Qd2+ {[%clk 0:00:19.7]} 61. Kc5 {[%clk 0:00:04.6]}
61... c2 {[%clk 0:00:20.2]} 62. Qf1+ {[%clk 0:00:02.3]} 62... c1=Q+ {[%clk
0:00:20.5]} 0-1

[Event "*** Titled Tuesday Blitz"]
[Site "Chess.com"]
[Date "2020.11.10"]
[Round "2"]
[White "MarceloPlaya"]
[Black "mirciulica14"]
[Result "0-1"]
[WhiteElo "2308"]
[BlackElo "2625"]
[TimeControl "180+1"]
[EndTime "10:21:13 PST"]
[Termination "mirciulica14 won on time"]

1. e4 {[%clk 0:03:00.9]} 1... e5 {[%clk 0:02:55.8]} 2. Nf3 {[%clk 0:03:00]} 2...
Nc6 {[%clk 0:02:56.2]} 3. d4 {[%clk 0:02:59.9]} 3... exd4 {[%clk 0:02:56.4]} 4.
Bc4 {[%clk 0:02:59.9]} 4... Nf6 {[%clk 0:02:56]} 5. Ng5 {[%clk 0:02:59.5]} 5...
Ne5 {[%clk 0:02:34.2]} 6. Qxd4 {[%clk 0:02:57.4]} 6... Nxc4 {[%clk 0:02:32.3]}
7. Qxc4 {[%clk 0:02:56.6]} 7... d5 {[%clk 0:02:26.1]} 8. exd5 {[%clk 0:02:56.5]}
8... Qxd5 {[%clk 0:02:25.6]} 9. Qe2+ {[%clk 0:02:56.2]} 9... Be6 {[%clk
0:02:08.6]} 10. O-O {[%clk 0:02:54.7]} 10... O-O-O {[%clk 0:02:02.6]} 11. Nc3
{[%clk 0:02:53]} 11... Qc4 {[%clk 0:01:56]} 12. Nxe6 {[%clk 0:02:52.3]} 12...
Qxe2 {[%clk 0:01:50.4]} 13. Nxe2 {[%clk 0:02:51.1]} 13... fxe6 {[%clk 0:01:51]}
14. Be3 {[%clk 0:02:44.9]} 14... e5 {[%clk 0:01:36.7]} 15. Rad1 {[%clk
0:02:36.7]} 15... Be7 {[%clk 0:01:36.6]} 16. f3 {[%clk 0:02:33.4]} 16... Nd5
{[%clk 0:01:29]} 17. Bd2 {[%clk 0:02:06.3]} 17... Bc5+ {[%clk 0:01:27.8]} 18.
Kh1 {[%clk 0:02:06]} 18... Rd7 {[%clk 0:01:10]} 19. c3 {[%clk 0:01:56.8]} 19...
Rhd8 {[%clk 0:00:57.6]} 20. Bg5 {[%clk 0:01:55.3]} 20... Nf6 {[%clk 0:00:56.4]}
21. Rxd7 {[%clk 0:01:45.5]} 21... Rxd7 {[%clk 0:00:56.5]} 22. Ng3 {[%clk
0:01:44.6]} 22... Be7 {[%clk 0:00:38.5]} 23. Re1 {[%clk 0:01:32.6]} 23... h6
{[%clk 0:00:25.9]} 24. Bc1 {[%clk 0:01:28.4]} 24... Nd5 {[%clk 0:00:18.5]} 25.
Kg1 {[%clk 0:01:21.4]} 25... Bc5+ {[%clk 0:00:16.8]} 26. Kf1 {[%clk 0:01:20.5]}
26... Nf4 {[%clk 0:00:14.2]} 27. Bxf4 {[%clk 0:01:18.5]} 27... exf4 {[%clk
0:00:15.1]} 28. Ne4 {[%clk 0:01:18.6]} 28... Be3 {[%clk 0:00:15.2]} 29. Ke2
{[%clk 0:01:18.1]} 29... c6 {[%clk 0:00:11.7]} 30. Rd1 {[%clk 0:01:17]} 30...
Re7 {[%clk 0:00:11.8]} 31. Nd6+ {[%clk 0:01:07.3]} 31... Kc7 {[%clk 0:00:11.8]}
32. Nf5 {[%clk 0:01:07.3]} 32... Re5 {[%clk 0:00:09.6]} 33. Nxe3 {[%clk
0:01:07]} 33... Rxe3+ {[%clk 0:00:09.7]} 34. Kf2 {[%clk 0:01:06.5]} 34... g5
{[%clk 0:00:07.4]} 35. h4 {[%clk 0:01:04.7]} 35... Re5 {[%clk 0:00:05.7]} 36.
hxg5 {[%clk 0:01:04]} 36... hxg5 {[%clk 0:00:06.6]} 37. Rd2 {[%clk 0:01:01.2]}
37... a5 {[%clk 0:00:07]} 38. g3 {[%clk 0:01:00.8]} 38... fxg3+ {[%clk
0:00:05.6]} 39. Kxg3 {[%clk 0:01:00.4]} 39... b5 {[%clk 0:00:06.2]} 40. Kg4
{[%clk 0:00:59.8]} 40... a4 {[%clk 0:00:06.7]} 41. Rh2 {[%clk 0:00:55.3]} 41...
Kb6 {[%clk 0:00:06.7]} 42. b3 {[%clk 0:00:46]} 42... axb3 {[%clk 0:00:06.5]} 43.
axb3 {[%clk 0:00:45.6]} 43... Re3 {[%clk 0:00:07.1]} 44. Rc2 {[%clk 0:00:44.1]}
44... c5 {[%clk 0:00:07.4]} 45. Kg3 {[%clk 0:00:35.7]} 45... b4 {[%clk
0:00:05.5]} 46. cxb4 {[%clk 0:00:33]} 46... cxb4 {[%clk 0:00:06.4]} 47. Rb2
{[%clk 0:00:22.2]} 47... Kc5 {[%clk 0:00:06.8]} 48. Kg4 {[%clk 0:00:21.7]} 48...
Kd4 {[%clk 0:00:05.8]} 49. Rc2 {[%clk 0:00:19.7]} 49... Rxb3 {[%clk 0:00:05]}
50. Rc8 {[%clk 0:00:15.6]} 50... Rc3 {[%clk 0:00:02.9]} 51. Rd8+ {[%clk
0:00:12.7]} 51... Kc4 {[%clk 0:00:03.3]} 52. Rc8+ {[%clk 0:00:08.4]} 52... Kb3
{[%clk 0:00:03.6]} 53. Rf8 {[%clk 0:00:07.8]} 53... Kc2 {[%clk 0:00:02]} 54.
Kxg5 {[%clk 0:00:04.6]} 54... b3 {[%clk 0:00:02.6]} 55. f4 {[%clk 0:00:01.5]}
55... b2 {[%clk 0:00:02.8]} 0-1

[Event "*** Titled Tuesday Blitz"]
[Site "Chess.com"]
[Date "2020.11.10"]
[Round "2"]
[White "AnishOnYoutube"]
[Black "Anna_ChessMate"]
[Result "1-0"]
[WhiteElo "2975"]
[BlackElo "2600"]
[TimeControl "180+1"]
[EndTime "10:21:15 PST"]
[Termination "AnishOnYoutube won on time"]

1. c4 {[%clk 0:03:00.9]} 1... c6 {[%clk 0:02:59.7]} 2. Nf3 {[%clk 0:03:00.3]}
2... d5 {[%clk 0:03:00]} 3. g3 {[%clk 0:03:00.6]} 3... Nf6 {[%clk 0:03:00.1]} 4.
Bg2 {[%clk 0:03:00.9]} 4... Bf5 {[%clk 0:02:57.7]} 5. Qb3 {[%clk 0:02:58.6]}
5... Qb6 {[%clk 0:02:54.9]} 6. d3 {[%clk 0:02:59.1]} 6... e6 {[%clk 0:02:54]} 7.
Be3 {[%clk 0:02:59.2]} 7... Qc7 {[%clk 0:02:45.6]} 8. O-O {[%clk 0:02:54.4]}
8... Nbd7 {[%clk 0:02:45.3]} 9. cxd5 {[%clk 0:02:52.9]} 9... exd5 {[%clk
0:02:44.9]} 10. Nc3 {[%clk 0:02:52.2]} 10... Be6 {[%clk 0:02:30.3]} 11. Nd4
{[%clk 0:02:47.8]} 11... Bc5 {[%clk 0:02:03.4]} 12. Na4 {[%clk 0:02:36.5]} 12...
Bd6 {[%clk 0:01:50.3]} 13. Rac1 {[%clk 0:02:35.1]} 13... Qb8 {[%clk 0:01:19]}
14. Nxe6 {[%clk 0:02:34.8]} 14... fxe6 {[%clk 0:01:19]} 15. Bh3 {[%clk 0:02:35]}
15... Ke7 {[%clk 0:01:15]} 16. Bd2 {[%clk 0:02:18.3]} 16... c5 {[%clk
0:01:11.4]} 17. Nc3 {[%clk 0:02:10.6]} 17... Re8 {[%clk 0:01:04.2]} 18. Nb5
{[%clk 0:01:36.2]} 18... b6 {[%clk 0:01:03.1]} 19. e4 {[%clk 0:01:24.5]} 19...
c4 {[%clk 0:01:01.4]} 20. dxc4 {[%clk 0:01:13.1]} 20... Nc5 {[%clk 0:01:00.1]}
21. Qc2 {[%clk 0:00:59.4]} 21... Ncxe4 {[%clk 0:00:53.5]} 22. cxd5 {[%clk
0:00:52.4]} 22... exd5 {[%clk 0:00:44.8]} 23. Nxd6 {[%clk 0:00:51.9]} 23... Qxd6
{[%clk 0:00:44.2]} 24. Bf4 {[%clk 0:00:46.4]} 24... Qb4 {[%clk 0:00:30.5]} 25.
a3 {[%clk 0:00:46.4]} 25... Qb5 {[%clk 0:00:28.3]} 26. f3 {[%clk 0:00:45.3]}
26... Qc5+ {[%clk 0:00:25.7]} 27. Kg2 {[%clk 0:00:36.1]} 27... Qxc2+ {[%clk
0:00:25.4]} 28. Rxc2 {[%clk 0:00:37]} 28... Nc5 {[%clk 0:00:24.8]} 29. b4 {[%clk
0:00:35]} 29... Nd3 {[%clk 0:00:25.1]} 30. Bg5 {[%clk 0:00:20.4]} 30... Kf8
{[%clk 0:00:24.6]} 31. Rd2 {[%clk 0:00:21]} 31... Ne5 {[%clk 0:00:17.1]} 32. Re1
{[%clk 0:00:15.2]} 32... Nc4 {[%clk 0:00:17]} 33. Rde2 {[%clk 0:00:13.8]} 33...
Rxe2+ {[%clk 0:00:16.6]} 34. Rxe2 {[%clk 0:00:14.7]} 34... Re8 {[%clk 0:00:17]}
35. Rxe8+ {[%clk 0:00:12.2]} 35... Kxe8 {[%clk 0:00:17.9]} 36. Bc1 {[%clk
0:00:12.3]} 36... Ke7 {[%clk 0:00:17.2]} 37. Kf2 {[%clk 0:00:11.9]} 37... d4
{[%clk 0:00:17]} 38. Ke2 {[%clk 0:00:12.1]} 38... Kd6 {[%clk 0:00:17.4]} 39. Bg2
{[%clk 0:00:10.1]} 39... b5 {[%clk 0:00:17]} 40. Kd3 {[%clk 0:00:07.3]} 40...
Ne5+ {[%clk 0:00:10.7]} 41. Kxd4 {[%clk 0:00:07.3]} 41... Nc6+ {[%clk
0:00:11.6]} 42. Kd3 {[%clk 0:00:07.5]} 42... Ne5+ {[%clk 0:00:11.2]} 43. Kd4
{[%clk 0:00:07.1]} 43... Nc6+ {[%clk 0:00:10.8]} 44. Ke3 {[%clk 0:00:07.4]}
44... Nd5+ {[%clk 0:00:10.3]} 45. Kd2 {[%clk 0:00:04.3]} 45... Ne5 {[%clk
0:00:10.1]} 46. f4 {[%clk 0:00:05]} 46... Nc4+ {[%clk 0:00:09.9]} 47. Kd3 {[%clk
0:00:05.6]} 47... Nf6 {[%clk 0:00:08.9]} 48. Kd4 {[%clk 0:00:05.8]} 48... Ng4
{[%clk 0:00:07.9]} 49. h3 {[%clk 0:00:05.1]} 49... Nh6 {[%clk 0:00:07.7]} 50. g4
{[%clk 0:00:05.1]} 50... Nf7 {[%clk 0:00:07.9]} 51. f5 {[%clk 0:00:03.3]} 51...
Nfe5 {[%clk 0:00:06]} 52. Bf4 {[%clk 0:00:03.9]} 52... a6 {[%clk 0:00:02.8]} 53.
Bd5 {[%clk 0:00:03.7]} 1-0